[Event "POL-chT DMP Ekstraliga 2019"]
[Site "Katowice"]
[Date "2019.09.04"]
[Round "8.3"]
[White "Dziuba, Marcin"]
[Black "Socko, Bartosz"]
[Result "1-0"]
[ECO "E12"]
[WhiteElo "2568"]
[BlackElo "2625"]
[Annotator "RC"]
[PlyCount "131"]
[EventDate "2019.08.28"]
[EventType "team-tourn"]
[EventCountry "POL"]
[SourceTitle "playchess.com"]
[Source "ChessBase"]
[SourceQuality "1"]
[TimeControl "40/5400+30:1800+30"]

1. d4 {[%emt 0:00:00]} Nf6 {[%emt 0:00:00]} 2. c4 {[%emt 0:00:00]} e6 {[%emt 0:00:00]} 3. Nf3 {[%emt 0:00:00]} b6 {[%emt 0:00:00]} 4. Bf4 {[%emt 0:00:15]} Bb7 {[%emt 0:00:17]} 5. e3 {[%emt 0:01:49]} Be7 {[%emt 0:00:26]} 6. Nc3 {[%emt 0:00:51]} Ne4 {[%emt 0:03:13]} 7. Nxe4 {[%emt 0:14:13]} Bxe4 {[%emt 0:01:33]} 8. Bd3 {[%emt 0:00:44]} Bxd3 {[%emt 0:10:51]} 9. Qxd3 {[%emt 0:00:32]} O-O {[%emt 0:08:52]} 10. h4 {[%emt 0:21:15]} f5 {[%emt 0:19:23]} 11. O-O-O {[%emt 0:04:17]} d5 {[%emt 0:01:14]} 12. Kb1 {[%emt 0:06:32]} Nc6 {[%emt 0:02:15]} 13. Rc1 {[%emt 0:04:56]} Rc8 {[%emt 0:03:08]} 14. Bg5 {[%emt 0:05:53]} Nb4 {[%emt 0:10:27]} 15. Qa3 {[%emt 0:09:53]} a5 {[%emt 0:00:55]} 16. c5 {[%emt 0:00:28]} Rb8 {[%emt 0:06:37]} 17. c6 {[%emt 0:09:55]} Bf6 {[%emt 0:04:07]} 18. Qc3 {[%emt 0:03:04]} Qe7 {[%emt 0:02:15]} 19. a3 {[%emt 0:00:10]} Na6 {[%emt 0:00:04]} 20. Ne5 {[%emt 0:02:06]} Ra8 {[%emt 0:05:09]} 21. Nd7 {[%emt 0:04:06]} Rf7 {[%emt 0:01:00]} 22. Ne5 {[%emt 0:00:09]} Rff8 {[%emt 0:00:21]} 23. Nd7 {[%emt 0:00:04]} Rf7 {[%emt 0:00:07]} 24. f4 {[%emt 0:02:42]} Qd6 {[%emt 0:04:29]} 25. h5 {[%emt 0:03:35]} Nb8 {[%emt 0:02:18]} 26. Ne5 {[%emt 0:01:06]} Bxe5 {[%emt 0:00:24]} 27. fxe5 {[%emt 0:01:26]} Qf8 {[%emt 0:00:11]} 28. Rhg1 {[%emt 0:00:37]} b5 {[%emt 0:03:37]} 29. Qc5 {[%emt 0:01:17]} Ra6 {[%emt 0:00:08]} 30. Qxb5 {[%emt 0:00:17]} Rb6 {[%emt 0:00:32]} 31. Qa4 {[%emt 0:01:51]} h6 {[%emt 0:00:06]} 32. Bf4 {[%emt 0:00:32]} Qe8 {[%emt 0:00:05]} 33. g4 {[%emt 0:00:48]} fxg4 {[%emt 0:07:07]} 34. Rxg4 {[%emt 0:00:04]} Re7 {[%emt 0:00:15]} 35. Rg6 {[%emt 0:01:06]} Qf8 {[%emt 0:01:29]} 36. Bxh6 {[%emt 0:00:31]} Qf5+ {[%emt 0:00:28]} 37. Ka2 {[%emt 0:00:38]} Qxh5 {[%emt 0:00:43]} 38. Qc2 {[%emt 0:00:40]} Rxc6 {[%emt 0:03:55]} 39. Qg2 {[%emt 0:00:01]} Qxg6 {[%emt 0:00:28]} 40. Qxg6 {[%emt 0:00:00]} Rxc1 {[%emt 0:00:00]} 41. e4 {[%emt 0:13:41]} Rh1 {[%emt 0:04:27]} 42. Bg5 {[%emt 0:01:08]} Rg1 {[%emt 0:00:08]} 43. exd5 {[%emt 0:00:22]} exd5 {[%emt 0:00:13]} 44. Qf5 {[%emt 0:00:31]} Rf7 {[%emt 0:01:41]} 45. Qc8+ {[%emt 0:01:09]} Rf8 {[%emt 0:00:06]} 46. Qe6+ {[%emt 0:00:11]} Kh7 {[%emt 0:01:49]} 47. Be7 {[%emt 0:02:44]} Rf2 {[%emt 0:07:12]} 48. a4 {[%emt 0:04:30]} Rgg2 {[%emt 0:00:15]} 49. Ba3 {[%emt 0:01:03]} Rc2 {[%emt 0:00:21]} 50. Qh3+ {[%emt 0:03:40]} Kg6 {[%emt 0:00:07]} 51. e6 {[%emt 0:00:21]} Nc6 {[%emt 0:03:01]} 52. e7 {[%emt 0:00:27]} Nxe7 {[%emt 0:01:51]} 53. Qe6+ {[%emt 0:00:05]} Kh5 {[%emt 0:00:34]} 54. Qxe7 {[%emt 0:00:12]} c6 {[%emt 0:01:18]} 55. Qd8 {[%emt 0:01:43]} g5 {[%emt 0:03:42]} 56. Qxa5 {[%emt 0:00:14]} g4 {[%emt 0:00:48]} 57. Qc7 {[%emt 0:02:46]} Rc1 {[%emt 0:03:36]} 58. Qe5+ {[%emt 0:01:11]} Kg6 {[%emt 0:00:06]} 59. Qe6+ {[%emt 0:00:31]} Kg7 {[%emt 0:00:05]} 60. Bf8+ {[%emt 0:00:47]} Kxf8 {[%emt 0:00:27]} 61. Qh6+ {[%emt 0:00:05]} Ke7 {[%emt 0:00:39]} 62. Qxc1 {[%emt 0:00:04]} Kd7 {[%emt 0:00:04]} 63. Qf1 {[%emt 0:00:42]} Rg3 {[%emt 0:00:27]} 64. Qf5+ {[%emt 0:00:19]} Kd8 {[%emt 0:00:08]} 65. Qf4 {[%emt 0:00:30]} Rg1 {[%emt 0:00:11]} 66. Qd6+ {[%emt 0:00:04]} 1-0

[Event "POL-chT DMP Ekstraliga 2019"]
[Site "Katowice"]
[Date "2019.09.04"]
[Round "8.24"]
[White "Antolak, Julia"]
[Black "Warakomska, Anna"]
[Result "1/2-1/2"]
[ECO "B15"]
[WhiteElo "2240"]
[BlackElo "2241"]
[Annotator "NA"]
[PlyCount "48"]
[EventDate "2019.08.28"]
[EventType "team-tourn"]
[EventCountry "POL"]
[SourceTitle "playchess.com"]
[Source "ChessBase"]
[SourceQuality "1"]
[TimeControl "40/5400+30:1800+30"]

1. e4 {[%emt 0:00:00]} c6 {[%emt 0:00:00]} 2. d4 {[%emt 0:00:00]} d5 {[%emt 0:00:00]} 3. Nc3 {[%emt 0:00:00]} dxe4 {[%emt 0:00:00]} 4. Nxe4 {[%emt 0:00:00]} Nf6 {[%emt 0:00:27]} 5. Nxf6+ {[%emt 0:00:18]} exf6 {[%emt 0:00:06]} 6. c3 {[%emt 0:00:06]} Bd6 {[%emt 0:00:06]} 7. Bd3 {[%emt 0:00:07]} O-O {[%emt 0:00:07]} 8. Qc2 {[%emt 0:00:11]} Re8+ {[%emt 0:00:05]} 9. Ne2 {[%emt 0:00:04]} h5 {[%emt 0:00:15]} 10. O-O {[%emt 0:02:13]} h4 {[%emt 0:00:28]} 11. Nf4 {[%emt 0:02:29]} Nd7 {[%emt 0:05:31]} 12. Qd1 {[%emt 0:01:39]} Nf8 {[%emt 0:15:45]} 13. Qh5 {[%emt 0:02:30]} Qc7 {[%emt 0:09:09]} 14. g3 {[%emt 0:04:20]} Bd7 {[%emt 0:32:26]} 15. Bd2 {[%emt 0:20:44]} Qc8 {[%emt 0:02:05]} 16. Rfe1 {[%emt 0:19:42]} Rxe1+ {[%emt 0:00:49]} 17. Rxe1 {[%emt 0:00:23]} Bg4 {[%emt 0:00:29]} 18. Qxh4 {[%emt 0:03:10]} Bxf4 {[%emt 0:15:06]} 19. gxf4 {[%emt 0:03:32]} Bf5 {[%emt 0:00:27]} 20. Bc4 {[%emt 0:02:45]} Qd7 {[%emt 0:01:29]} 21. Qg3 {[%emt 0:01:59]} Re8 {[%emt 0:01:36]} 22. Rxe8 {[%emt 0:02:13]} Qxe8 {[%emt 0:00:04]} 23. Qe3 {[%emt 0:01:02]} Qd7 {[%emt 0:00:17]} 24. f3 {[%emt 0:02:30]} Ng6 {[%emt 0:01:33]} 1/2-1/2

[Event "POL-chT DMP Ekstraliga 2019"]
[Site "Katowice"]
[Date "2019.09.05"]
[Round "9.12"]
[White "Leks, Maria"]
[Black "Antolak, Julia"]
[Result "0-1"]
[ECO "B83"]
[WhiteElo "2129"]
[BlackElo "2240"]
[Annotator "NA"]
[PlyCount "96"]
[EventDate "2019.08.28"]
[EventType "team-tourn"]
[EventCountry "POL"]
[SourceTitle "playchess.com"]
[Source "ChessBase"]
[SourceQuality "1"]
[TimeControl "40/5400+30:1800+30"]

1. e4 {[%emt 0:02:09]} c5 {[%emt 0:00:00]} 2. Nf3 {[%emt 0:00:05]} e6 {[%emt 0:00:06]} 3. d4 {[%emt 0:00:09]} cxd4 {[%emt 0:00:08]} 4. Nxd4 {[%emt 0:00:04]} Nf6 {[%emt 0:00:12]} 5. Nc3 {[%emt 0:00:07]} d6 {[%emt 0:00:03]} 6. Be2 {[%emt 0:00:15]} Be7 {[%emt 0:00:51]} 7. O-O {[%emt 0:00:12]} Nc6 {[%emt 0:01:10]} 8. Be3 {[%emt 0:00:15]} a6 {[%emt 0:01:47]} 9. a4 {[%emt 0:02:13]} O-O {[%emt 0:00:29]} 10. f4 {[%emt 0:00:47]} Qc7 {[%emt 0:01:19]} 11. Kh1 {[%emt 0:00:39]} Nxd4 {[%emt 0:00:20]} 12. Qxd4 {[%emt 0:02:23]} Bd7 {[%emt 0:00:37]} 13. e5 {[%emt 0:02:18]} Ne8 {[%emt 0:02:22]} 14. Bd3 {[%emt 0:05:34]} Bc6 {[%emt 0:03:18]} 15. Rae1 {[%emt 0:10:02]} Rd8 {[%emt 0:04:00]} 16. Qb6 {[%emt 0:06:45]} dxe5 {[%emt 0:08:26]} 17. Qxc7 {[%emt 0:01:14]} Nxc7 {[%emt 0:00:05]} 18. Bb6 {[%emt 0:04:50]} Rd7 {[%emt 0:04:36]} 19. fxe5 {[%emt 0:05:37]} Bb4 {[%emt 0:04:52]} 20. Bxc7 {[%emt 0:14:35]} Rxc7 {[%emt 0:01:09]} 21. Rf4 {[%emt 0:00:04]} Bxc3 {[%emt 0:00:55]} 22. bxc3 {[%emt 0:00:04]} Rfc8 {[%emt 0:04:45]} 23. Ref1 {[%emt 0:15:54]} Be8 {[%emt 0:08:11]} 24. Be4 {[%emt 0:13:59]} Bxa4 {[%emt 0:08:51]} 25. Bxb7 {[%emt 0:01:47]} Rxb7 {[%emt 0:00:28]} 26. Rxa4 {[%emt 0:00:04]} Rxc3 {[%emt 0:00:50]} 27. Rxa6 {[%emt 0:00:08]} g6 {[%emt 0:00:10]} 28. Ra2 {[%emt 0:02:24]} Rbc7 {[%emt 0:01:24]} 29. Rf2 {[%emt 0:08:24]} Re3 {[%emt 0:00:14]} 30. h3 {[%emt 0:00:03]} Rxe5 {[%emt 0:00:06]} 31. Rb2 {[%emt 0:00:44]} Kg7 {[%emt 0:00:56]} 32. Kh2 {[%emt 0:00:06]} f5 {[%emt 0:00:36]} 33. Rd2 {[%emt 0:01:31]} Kf6 {[%emt 0:00:28]} 34. Kg3 {[%emt 0:00:47]} Rec5 {[%emt 0:04:19]} 35. Kf2 {[%emt 0:00:08]} R5c6 {[%emt 0:00:27]} 36. Ke3 {[%emt 0:00:10]} e5 {[%emt 0:00:11]} 37. Ke2 {[%emt 0:01:17]} e4 {[%emt 0:00:31]} 38. Ra2 {[%emt 0:00:29]} Kg5 {[%emt 0:01:57]} 39. Kd1 {[%emt 0:00:41]} Rc3 {[%emt 0:01:02]} 40. Ke2 Kf4 {[%emt 0:00:00]} 41. Rb2 {[%emt 0:08:01]} Kg3 {[%emt 0:02:03]} 42. Kf1 {[%emt 0:10:55]} f4 {[%emt 0:01:30]} 43. Rd5 {[%emt 0:03:55]} Rxc2 {[%emt 0:05:02]} 44. Rg5+ {[%emt 0:00:53]} Kh2 {[%emt 0:00:06]} 45. Rxc2 {[%emt 0:00:09]} Rxc2 {[%emt 0:00:05]} 46. Rg4 {[%emt 0:00:12]} f3 {[%emt 0:00:17]} 47. gxf3 {[%emt 0:00:37]} exf3 {[%emt 0:00:08]} 48. h4 {[%emt 0:00:34]} Kh3 {[%emt 0:00:05]} 0-1

[Event "POL-chT DMP Ekstraliga 2019"]
[Site "Katowice"]
[Date "2019.09.05"]
[Round "9.15"]
[White "Janik, Igor"]
[Black "Olszewski, Michal"]
[Result "0-1"]
[ECO "D70"]
[WhiteElo "2483"]
[BlackElo "2522"]
[Annotator "RC"]
[PlyCount "146"]
[EventDate "2019.08.28"]
[EventType "team-tourn"]
[EventCountry "POL"]
[SourceTitle "playchess.com"]
[Source "ChessBase"]
[SourceQuality "1"]
[TimeControl "40/5400+30:1800+30"]

1. d4 {[%emt 0:00:00]} Nf6 {[%emt 0:00:00]} 2. c4 {[%emt 0:00:00]} g6 {[%emt 0:00:00]} 3. Nf3 {[%emt 0:00:00]} Bg7 {[%emt 0:00:00]} 4. g3 {[%emt 0:00:02]} c5 {[%emt 0:00:41]} 5. Bg2 {[%emt 0:00:23]} cxd4 {[%emt 0:03:37]} 6. Nxd4 {[%emt 0:00:12]} d5 {[%emt 0:05:00]} 7. Nc3 {[%emt 0:04:06]} e5 {[%emt 0:05:52]} 8. Nb3 {[%emt 0:00:12]} d4 {[%emt 0:01:36]} 9. Nd5 {[%emt 0:00:11]} Nxd5 {[%emt 0:05:01]} 10. cxd5 {[%emt 0:00:23]} O-O {[%emt 0:01:49]} 11. O-O {[%emt 0:03:36]} Nd7 {[%emt 0:13:04]} 12. e3 {[%emt 0:03:41]} a5 {[%emt 0:14:26]} 13. a4 {[%emt 0:01:07]} Qb6 {[%emt 0:07:41]} 14. Re1 {[%emt 0:11:46]} Nf6 {[%emt 0:06:04]} 15. exd4 {[%emt 0:02:22]} Bg4 {[%emt 0:12:17]} 16. f3 {[%emt 0:02:35]} Bf5 {[%emt 0:00:03]} 17. g4 {[%emt 0:02:32]} Bd7 {[%emt 0:00:52]} 18. Rxe5 {[%emt 0:08:33]} Nxg4 {[%emt 0:03:25]} 19. Re1 {[%emt 0:00:02]} Nf6 {[%emt 0:00:54]} 20. Nc5 {[%emt 0:00:12]} Bf5 {[%emt 0:01:37]} 21. d6 {[%emt 0:00:55]} Qxd6 {[%emt 0:04:39]} 22. Nxb7 {[%emt 0:01:08]} Qb4 {[%emt 0:04:39]} 23. Nc5 {[%emt 0:00:22]} Rfe8 {[%emt 0:01:05]} 24. Bg5 {[%emt 0:04:40]} Qxb2 {[%emt 0:02:06]} 25. Kh1 {[%emt 0:01:41]} Rxe1+ {[%emt 0:01:18]} 26. Qxe1 {[%emt 0:00:01]} Qxd4 {[%emt 0:01:26]} 27. Rc1 {[%emt 0:01:21]} Rc8 {[%emt 0:02:45]} 28. Be3 {[%emt 0:02:22]} Qb2 {[%emt 0:01:20]} 29. Rd1 {[%emt 0:03:44]} Re8 {[%emt 0:00:17]} 30. Qg1 {[%emt 0:01:01]} Qc2 {[%emt 0:00:46]} 31. Rc1 {[%emt 0:01:48]} Qe2 {[%emt 0:00:12]} 32. Bd4 {[%emt 0:01:15]} Bh6 {[%emt 0:00:42]} 33. Ra1 {[%emt 0:01:23]} Nd5 {[%emt 0:00:39]} 34. Nb7 {[%emt 0:00:44]} Be3 {[%emt 0:00:33]} 35. Bxe3 {[%emt 0:00:07]} Rxe3 {[%emt 0:00:16]} 36. Qf1 {[%emt 0:08:31]} Nf4 {[%emt 0:00:39]} 37. Qxe2 {[%emt 0:01:04]} Rxe2 {[%emt 0:00:07]} 38. Bf1 {[%emt 0:00:04]} Re5 {[%emt 0:00:29]} 39. Bb5 {[%emt 0:00:07]} Bd3 {[%emt 0:00:47]} 40. Bxd3 {[%emt 0:00:00]} Nxd3 {[%emt 0:00:00]} 41. Rb1 {[%emt 0:01:12]} Rg5 {[%emt 0:05:34]} 42. h3 {[%emt 0:00:04]} Rg3 {[%emt 0:02:46]} 43. Rb3 {[%emt 0:06:31]} Rxh3+ {[%emt 0:11:33]} 44. Kg2 {[%emt 0:01:44]} Nf4+ {[%emt 0:00:09]} 45. Kf2 {[%emt 0:00:23]} g5 {[%emt 0:04:04]} 46. Rb5 {[%emt 0:00:33]} Rh2+ {[%emt 0:01:00]} 47. Kf1 {[%emt 0:00:48]} f6 {[%emt 0:03:27]} 48. Rxa5 {[%emt 0:00:23]} Ra2 {[%emt 0:00:15]} 49. Nd6 {[%emt 0:02:16]} h5 {[%emt 0:01:28]} 50. Ne4 {[%emt 0:00:39]} Kf7 {[%emt 0:02:47]} 51. Rf5 {[%emt 0:03:18]} Ke6 {[%emt 0:02:58]} 52. Rxf6+ {[%emt 0:00:09]} Ke5 {[%emt 0:00:04]} 53. Rb6 {[%emt 0:00:21]} Ne6 {[%emt 0:01:00]} 54. Ng3 {[%emt 0:05:18]} h4 {[%emt 0:00:20]} 55. Ne2 {[%emt 0:00:01]} Rxa4 {[%emt 0:00:26]} 56. Rb5+ {[%emt 0:00:14]} Kf6 57. Rb2 {[%emt 0:01:10]} h3 {[%emt 0:01:13]} 58. Kf2 {[%emt 0:00:39]} Ra1 {[%emt 0:00:34]} 59. Kg3 {[%emt 0:00:21]} Rh1 {[%emt 0:00:22]} 60. Rb6 {[%emt 0:01:47]} Ke5 {[%emt 0:00:33]} 61. Rb5+ {[%emt 0:00:04]} Kd6 62. Nc3 {[%emt 0:01:05]} Nc5 {[%emt 0:01:00]} 63. Rb2 {[%emt 0:01:09]} Ne6 {[%emt 0:00:33]} 64. Ne4+ {[%emt 0:00:55]} Ke5 {[%emt 0:00:29]} 65. Rb5+ {[%emt 0:00:50]} Kd4 {[%emt 0:00:20]} 66. Nxg5 {[%emt 0:00:49]} Nxg5 {[%emt 0:00:13]} 67. Rb4+ {[%emt 0:00:22]} Kc3 {[%emt 0:00:22]} 68. Rh4 {[%emt 0:01:06]} Rg1+ {[%emt 0:00:45]} 69. Kf2 {[%emt 0:00:14]} Rg2+ {[%emt 0:00:16]} 70. Kf1 {[%emt 0:00:48]} Rg3 {[%emt 0:00:37]} 71. f4 {[%emt 0:00:22]} Ne4 {[%emt 0:00:14]} 72. f5 {[%emt 0:00:30]} Kd3 {[%emt 0:00:27]} 73. f6 {[%emt 0:00:08]} Ke3 {[%emt 0:00:34]} 0-1

[Event "POL-chT DMP Ekstraliga 2019"]
[Site "Katowice"]
[Date "2019.09.05"]
[Round "9.21"]
[White "Mastrovasilis, Dimitrios"]
[Black "Kriebel, Tadeas"]
[Result "1/2-1/2"]
[ECO "B32"]
[WhiteElo "2594"]
[BlackElo "2531"]
[Annotator "ChessBase"]
[PlyCount "54"]
[EventDate "2019.08.28"]
[EventType "team-tourn"]
[EventCountry "POL"]
[SourceTitle "playchess.com"]
[Source "ChessBase"]
[SourceQuality "1"]
[TimeControl "40/5400+30:1800+30"]

1. e4 {[%emt 0:00:00]} c5 {[%emt 0:00:00]} 2. Nf3 {[%emt 0:00:00]} Nc6 {[%emt 0:00:00]} 3. d4 {[%emt 0:00:14]} cxd4 {[%emt 0:00:00]} 4. Nxd4 {[%emt 0:00:09]} e5 {[%emt 0:00:41]} 5. Nb5 {[%emt 0:00:20]} a6 {[%emt 0:00:19]} 6. Nd6+ {[%emt 0:00:31]} Bxd6 {[%emt 0:00:06]} 7. Qxd6 {[%emt 0:00:10]} Qe7 {[%emt 0:00:06]} 8. Qxe7+ {[%emt 0:06:04]} Ngxe7 {[%emt 0:00:05]} 9. Nc3 {[%emt 0:02:13]} d5 {[%emt 0:00:12]} 10. exd5 {[%emt 0:02:08]} Nd4 {[%emt 0:02:50]} 11. Bd3 {[%emt 0:02:01]} Bf5 {[%emt 0:00:03]} 12. O-O {[%emt 0:24:10]} Bxd3 {[%emt 0:04:25]} 13. cxd3 {[%emt 0:00:10]} Nc2 {[%emt 0:00:24]} 14. Rb1 {[%emt 0:00:28]} Rd8 {[%emt 0:00:05]} 15. f4 {[%emt 0:05:37]} Nxd5 {[%emt 0:11:33]} 16. fxe5 {[%emt 0:01:27]} O-O {[%emt 0:00:57]} 17. Bg5 {[%emt 0:11:04]} Nxc3 {[%emt 0:00:10]} 18. bxc3 {[%emt 0:01:12]} Rxd3 {[%emt 0:00:02]} 19. Rxb7 {[%emt 0:01:28]} Rxc3 {[%emt 0:00:09]} 20. Be7 {[%emt 0:03:27]} Re8 {[%emt 0:00:23]} 21. Bd6 {[%emt 0:05:40]} Ne3 {[%emt 0:00:36]} 22. Rf3 {[%emt 0:02:13]} f6 {[%emt 0:02:15]} 23. h3 {[%emt 0:05:43]} Rc1+ {[%emt 0:01:53]} 24. Kf2 {[%emt 0:00:31]} Nc4 {[%emt 0:00:08]} 25. exf6 {[%emt 0:03:27]} Nxd6 {[%emt 0:00:08]} 26. f7+ {[%emt 0:00:09]} Nxf7 {[%emt 0:00:04]} 27. Rfxf7 {[%emt 0:01:05]} Rf8 {[%emt 0:00:16]} 1/2-1/2